fUST/lending_fUST_20251010
["ID","MTS","AMOUNT","RATE_DAILY","PERIOD"]
[390575994,1760091042428,-4702.0,0.00016705,2]
[390575996,1760091042437,-154.020421,0.0001671,2]
[390575998,1760091042446,-151.0,0.0001671,2]
[390576000,1760091042455,-565.89,0.00016711,2]
[390576002,1760091042464,-565.89,0.00016711,2]
[390576004,1760091042473,-565.89,0.00016711,2]
[390576006,1760091042482,-565.89,0.00016711,2]
[390576008,1760091042491,-565.89,0.00016711,2]
[390576010,1760091042501,-565.89,0.00016711,2]
[390576011,1760091042510,-565.89,0.00016711,2]
[390576013,1760091042519,-882.0,0.00016712,2]
[390576016,1760091042529,-222.45,0.00016712,2]
[390576017,1760091042538,-500.0,0.00016712,2]
[390576019,1760091042547,-501.21198295,0.00016712,2]
[390576021,1760091042556,-500.0,0.00016712,2]
[390576023,1760091042564,-500.0,0.00016712,2]
[390576025,1760091042574,-378.9543761,0.00016712,2]
[390576027,1760091042583,-500.0,0.00016712,2]
[390576029,1760091042592,-700.31,0.00016712,2]
[390576031,1760091042602,-500.0,0.00016712,2]
[390576033,1760091042611,-500.0,0.00016712,2]
[390576035,1760091042620,-500.0,0.00016712,2]
[390576037,1760091042628,-500.0,0.00016712,2]
[390576039,1760091042638,-240.10402428,0.00016712,2]
[390576041,1760091042646,-525.57225404,0.00016712,2]
[390576043,1760091042655,-626.41,0.00016712,2]
[390576045,1760091042664,-500.0,0.00016712,2]
[390576048,1760091042673,-500.0,0.00016712,2]
[390576050,1760091042681,-540.17,0.00016712,2]
[390576053,1760091042690,-500.0,0.00016712,2]
[390576056,1760091042700,-500.0,0.00016712,2]
[390576059,1760091042709,-151.0,0.00016712,2]
[390576061,1760091042720,-151.386704,0.00016712,2]
[390576063,1760091042729,-500.0,0.00016712,2]
[390576065,1760091042738,-803.31,0.00016712,2]
[390576067,1760091042747,-152.275113,0.00016712,2]
[390576070,1760091042757,-151.0,0.00016712,2]
[390576072,1760091042766,-300.0,0.00016712,2]
[390576074,1760091042775,-431.4,0.00016712,2]
[390576075,1760091042784,-500.0,0.00016712,2]
[390576078,1760091042793,-500.0,0.00016712,2]
[390576081,1760091042804,-500.0,0.00016712,2]
[390576082,1760091042814,-307.94323806,0.00016712,2]
[390576084,1760091042823,-500.0,0.00016712,2]
[390576087,1760091042833,-500.0,0.00016712,2]
[390576089,1760091042843,-500.0,0.00016712,2]
[390576091,1760091042852,-500.0,0.00016712,2]
[390576093,1760091042861,-399.08096042,0.00016712,2]
[390576095,1760091042871,-151.0,0.00016712,2]
[390576097,1760091042880,-151.0,0.00016712,2]
[390576099,1760091042890,-500.0,0.00016712,2]
[390576101,1760091042899,-500.0,0.00016712,2]
[390576102,1760091042908,-500.0,0.00016712,2]
[390576105,1760091042917,-500.0,0.00016712,2]
[390576107,1760091042927,-151.0,0.00016712,2]
[390576108,1760091042937,-151.0,0.00016712,2]
[390576111,1760091042947,-592.5,0.00016712,2]
[390576113,1760091042955,-500.0,0.00016712,2]
[390576115,1760091042965,-151.0,0.00016712,2]
[390576116,1760091042974,-153.085781,0.00016712,2]
[390576118,1760091042983,-513.45,0.00016712,2]
[390576120,1760091042992,-425.06,0.00016712,2]
[390576122,1760091043002,-500.0,0.00016712,2]
[390576124,1760091043011,-500.0,0.00016712,2]
[390576126,1760091043020,-500.0,0.00016712,2]
[390576128,1760091043029,-500.0,0.00016712,2]
[390576130,1760091043038,-500.0,0.00016712,2]
[390576132,1760091043047,-500.0,0.00016712,2]
[390576134,1760091043056,-234.86366,0.00016712,2]
[390576136,1760091043066,-500.0,0.00016712,2]
[390576138,1760091043075,-500.0,0.00016712,2]
[390576140,1760091043084,-500.0,0.00016712,2]
[390576142,1760091043094,-942.37,0.00016712,2]
[390576145,1760091043104,-151.0,0.00016712,2]
[390576147,1760091043113,-151.0,0.00016712,2]
[390576149,1760091043122,-500.0,0.00016712,2]
[390576151,1760091043131,-500.0,0.00016712,2]
[390576153,1760091043140,-339.62772809,0.00016712,2]
[390576155,1760091043149,-500.0,0.00016712,2]
[390576157,1760091043158,-1003.68,0.00016712,2]
[390576159,1760091043168,-500.0,0.00016712,2]
[390576161,1760091043177,-325.48,0.00016712,2]
[390576163,1760091043186,-500.0,0.00016712,2]
[390576165,1760091043195,-500.0,0.00016712,2]
[390576167,1760091043204,-612.45,0.00016712,2]
[390576169,1760091043213,-151.0,0.00016712,2]
[390576171,1760091043222,-504.43861345,0.00016712,2]
[390576173,1760091043231,-500.0,0.00016712,2]
[390576175,1760091043242,-151.0,0.00016712,2]
[390576177,1760091043252,-253.43,0.00016712,2]
[390576179,1760091043261,-500.0,0.00016712,2]
[390576181,1760091043272,-500.0,0.00016712,2]
[390576183,1760091043283,-500.0,0.00016712,2]
[390576185,1760091043293,-500.0,0.00016712,2]
[390576187,1760091043302,-579.05,0.00016712,2]
[390576189,1760091043311,-151.0,0.00016712,2]
[390576191,1760091043322,-500.0,0.00016712,2]
[390576193,1760091043331,-606.63815036,0.00016712,2]
[390576195,1760091043341,-338.04,0.00016712,2]
[390576197,1760091043350,-500.0,0.00016712,2]
[390576199,1760091043359,-500.0,0.00016712,2]
[390576201,1760091043368,-500.0,0.00016712,2]
[390576203,1760091043377,-500.0,0.00016712,2]
[390576205,1760091043386,-500.0,0.00016712,2]
[390576207,1760091043396,-244.097566,0.00016712,2]
[390576209,1760091043405,-500.0,0.00016712,2]
[390576211,1760091043415,-151.0,0.00016712,2]
[390576213,1760091043424,-151.0,0.00016712,2]
[390576215,1760091043434,-500.0,0.00016712,2]
[390576217,1760091043443,-151.0,0.00016712,2]
[390576219,1760091043452,-151.0,0.00016712,2]
[390576221,1760091043460,-500.0,0.00016712,2]
[390576223,1760091043469,-500.0,0.00016712,2]
[390576225,1760091043478,-500.0,0.00016712,2]
[390576227,1760091043487,-500.0,0.00016712,2]
[390576229,1760091043497,-500.0,0.00016712,2]
[390576231,1760091043507,-500.0,0.00016712,2]
[390576233,1760091043516,-441.73801122,0.00016712,2]
[390576235,1760091043524,-151.0,0.00016712,2]
[390576237,1760091043533,-151.0,0.00016712,2]
[390576239,1760091043542,-500.0,0.00016712,2]
[390576241,1760091043551,-500.0,0.00016712,2]
[390576243,1760091043560,-500.0,0.00016712,2]
[390576245,1760091043569,-500.0,0.00016712,2]
[390576247,1760091043578,-500.56684885,0.00016712,2]
[390576249,1760091043587,-500.0,0.00016712,2]
[390576251,1760091043596,-500.0,0.00016712,2]
[390576253,1760091043604,-151.0,0.00016712,2]
[390576255,1760091043614,-151.0,0.00016712,2]
[390576257,1760091043623,-905.33,0.00016712,2]
[390576259,1760091043632,-805.24,0.00016712,2]
[390576261,1760091043642,-500.0,0.00016712,2]
[390576263,1760091043651,-500.0,0.00016712,2]
[390576265,1760091043660,-500.0,0.00016712,2]
[390576267,1760091043669,-500.0,0.00016712,2]
[390576269,1760091043677,-500.0,0.00016712,2]
[390576271,1760091043687,-500.0,0.00016712,2]
[390576273,1760091043696,-500.0,0.00016712,2]
[390576275,1760091043705,-192.17126561,0.00016712,2]
[390576277,1760091043715,-500.0,0.00016712,2]
[390576279,1760091043725,-500.0,0.00016712,2]
[390576281,1760091043734,-500.0,0.00016712,2]
[390576283,1760091043746,-500.0,0.00016712,2]
[390576285,1760091043755,-500.0,0.00016712,2]
[390576287,1760091043764,-1328.9,0.00016712,2]
[390576289,1760091043773,-500.0,0.00016712,2]
[390576291,1760091043782,-151.0,0.00016712,2]
[390576293,1760091043791,-151.0,0.00016712,2]
[390576295,1760091043801,-151.0,0.00016712,2]
[390576297,1760091043811,-151.0,0.00016712,2]
[390576299,1760091043821,-500.0,0.00016712,2]
[390576301,1760091043831,-500.0,0.00016712,2]
[390576303,1760091043840,-151.0,0.00016712,2]
[390576305,1760091043849,-243.950688,0.00016712,2]
[390576307,1760091043858,-937.71,0.00016712,2]
[390576309,1760091043867,-500.0,0.00016712,2]
[390576311,1760091043876,-501.80833134,0.00016712,2]
[390576313,1760091043885,-500.0,0.00016712,2]
[390576315,1760091043894,-442.03435494,0.00016712,2]
[390576318,1760091043904,-500.0,0.00016712,2]
[390576320,1760091043913,-500.0,0.00016712,2]
[390576322,1760091043923,-502.4887335,0.00016712,2]
[390576324,1760091043931,-500.0,0.00016712,2]
[390576326,1760091043941,-500.0,0.00016712,2]
[390576328,1760091043950,-151.0,0.00016712,2]
[390576329,1760091043959,-151.0,0.00016712,2]
[390576332,1760091043968,-151.0,0.00016712,2]
[390576334,1760091043978,-151.0,0.00016712,2]
[390576336,1760091043987,-151.0,0.00016712,2]
[390576338,1760091043996,-151.898981,0.00016712,2]
[390576339,1760091044006,-500.0,0.00016712,2]
[390576341,1760091044015,-318.03,0.00016712,2]
[390576344,1760091044025,-428.82816137,0.00016712,2]
[390576346,1760091044038,-569.60990512,0.00016712,2]
[390576348,1760091044047,-500.0,0.00016712,2]
[390576350,1760091044057,-500.0,0.00016712,2]
[390576352,1760091044066,-151.0,0.00016712,2]
[390576354,1760091044075,-151.0,0.00016712,2]
[390576356,1760091044084,-151.0,0.00016712,2]
[390576358,1760091044093,-151.0,0.00016712,2]
[390576360,1760091044102,-500.0,0.00016712,2]
[390576361,1760091044111,-1749.37,0.00016712,2]
[390576363,1760091044120,-500.0,0.00016712,2]
[390576365,1760091044131,-500.0,0.00016712,2]
[390576367,1760091044141,-500.0,0.00016712,2]
[390576369,1760091044153,-152.031456,0.00016712,2]
[390576371,1760091044163,-500.0,0.00016712,2]
[390576373,1760091044171,-500.0,0.00016712,2]
[390576375,1760091044180,-887.19,0.00016712,2]
[390576377,1760091044190,-500.0,0.00016712,2]
[390576379,1760091044199,-500.0,0.00016712,2]
[390576381,1760091044209,-500.0,0.00016712,2]
[390576383,1760091044218,-500.0,0.00016712,2]
[390576385,1760091044228,-1245.37,0.00016712,2]
[390576387,1760091044237,-500.0,0.00016712,2]
[390576389,1760091044249,-3050.89,0.00016712,2]
[390576391,1760091044259,-500.0,0.00016712,2]
[390576393,1760091044269,-1194.96,0.00016712,2]
[390576395,1760091044278,-510.83,0.00016712,2]
[390576397,1760091044290,-500.0,0.00016712,2]
[390576399,1760091044298,-5982.98,0.00016712,2]
[390576401,1760091044308,-681.35,0.00016712,2]
[390576403,1760091044320,-500.0,0.00016712,2]
[390576405,1760091044329,-500.0,0.00016712,2]
[390576407,1760091044338,-500.0,0.00016712,2]
[390576409,1760091044347,-500.0,0.00016712,2]
[390576410,1760091044356,-500.0,0.00016712,2]
[390576412,1760091044365,-151.0,0.00016712,2]
[390576414,1760091044374,-151.0,0.00016712,2]
[390576416,1760091044383,-500.0,0.00016712,2]
[390576418,1760091044392,-500.0,0.00016712,2]
[390576420,1760091044402,-500.0,0.00016712,2]
[390576422,1760091044410,-500.0,0.00016712,2]
[390576424,1760091044419,-500.0,0.00016712,2]
[390576426,1760091044428,-500.0,0.00016712,2]
[390576428,1760091044437,-5705.2,0.00016712,2]
[390576430,1760091044446,-898.84,0.00016712,2]
[390576432,1760091044455,-5035.78,0.00016712,2]
[390576434,1760091044464,-500.0,0.00016712,2]
[390576435,1760091044473,-1783.34,0.00016712,2]
[390576437,1760091044482,-500.0,0.00016712,2]
[390576439,1760091044492,-754.27,0.00016712,2]
[390576441,1760091044501,-500.0,0.00016712,2]
[390576443,1760091044510,-2521.53,0.00016712,2]
[390576445,1760091044519,-2043.03,0.00016712,2]
[390576447,1760091044528,-500.0,0.00016712,2]
[390576449,1760091044536,-645.78,0.00016712,2]
[390576451,1760091044545,-500.0,0.00016712,2]
[390576453,1760091044554,-500.0,0.00016712,2]
[390576454,1760091044563,-500.0,0.00016712,2]
[390576456,1760091044572,-500.0,0.00016712,2]
[390576458,1760091044580,-500.0,0.00016712,2]
[390576459,1760091044589,-500.0,0.00016712,2]
[390576461,1760091044598,-500.0,0.00016712,2]
[390576463,1760091044607,-500.0,0.00016712,2]
[390576465,1760091044615,-500.0,0.00016712,2]
[390576467,1760091044624,-500.0,0.00016712,2]
[390576469,1760091044633,-720.45,0.00016712,2]
[390576471,1760091044642,-564.34,0.00016712,2]
[390576472,1760091044650,-500.0,0.00016712,2]
[390576474,1760091044659,-500.0,0.00016712,2]
[390576476,1760091044669,-602.08488313,0.00016712,2]
[390576478,1760091044678,-1232.67,0.00016712,2]
[390576480,1760091044687,-3366.4,0.00016712,2]
[390576482,1760091044696,-277.914755,0.00016712,2]
[390576484,1760091044705,-277.914755,0.00016712,2]
[390576486,1760091044713,-1064.85,0.00016712,2]
[390576487,1760091044722,-277.914755,0.00016712,2]
[390576489,1760091044731,-277.914755,0.00016712,2]
[390576491,1760091044740,-636.4719286,0.00016712,2]
[390576493,1760091044749,-500.0,0.00016712,2]
[390576495,1760091044758,-277.914755,0.00016712,2]
[390576497,1760091044767,-753.1,0.00016712,2]
[390576499,1760091044777,-277.914755,0.00016712,2]
[390576501,1760091044786,-500.0,0.00016712,2]
[390576502,1760091044796,-277.914755,0.00016712,2]
[390576504,1760091044805,-277.914755,0.00016712,2]
[390576506,1760091044814,-577.27,0.00016712,2]
[390576508,1760091044825,-500.0,0.00016712,2]
[390576510,1760091044835,-500.0,0.00016712,2]
[390576512,1760091044844,-500.0,0.00016712,2]
[390576514,1760091044854,-151.0,0.00016712,2]
[390576516,1760091044863,-151.0,0.00016712,2]
[390576518,1760091044872,-514.29,0.00016712,2]
[390576520,1760091044881,-427.26872062,0.00016712,2]
[390576521,1760091044891,-500.0,0.00016712,2]
[390576523,1760091044900,-636.81915855,0.00016712,2]
[390576525,1760091044908,-500.0,0.00016712,2]
[390576527,1760091044919,-1154.2,0.00016712,2]
[390576529,1760091044928,-749.88,0.00016712,2]
[390576531,1760091044937,-500.0,0.00016712,2]
[390576533,1760091044947,-500.0,0.00016712,2]
[390576535,1760091044956,-500.0,0.00016712,2]
[390576537,1760091044965,-500.0,0.00016712,2]
[390576538,1760091044974,-500.0,0.00016712,2]
[390576540,1760091044983,-500.0,0.00016712,2]
[390576556,1760091045131,-501.37353305,0.00016712,2]
[390576558,1760091045140,-500.0,0.00016712,2]
[390576560,1760091045150,-500.0,0.00016712,2]
[390576562,1760091045159,-3307.06,0.00016712,2]
[390576564,1760091045168,-500.0,0.00016712,2]
[390576565,1760091045176,-320.003172,0.00016712,2]
[390576567,1760091045186,-320.003172,0.00016712,2]
[390576569,1760091045195,-320.003172,0.00016712,2]
[390576571,1760091045204,-320.003172,0.00016712,2]
[390576573,1760091045213,-500.0,0.00016712,2]
[390576575,1760091045224,-320.003172,0.00016712,2]
[390576577,1760091045234,-969.0,0.00016712,2]
[390576579,1760091045246,-505.23165234,0.00016712,2]
[390576581,1760091045254,-320.003172,0.00016712,2]
[390576583,1760091045265,-500.0,0.00016712,2]
[390576585,1760091045275,-320.003172,0.00016712,2]
[390576587,1760091045285,-320.003172,0.00016712,2]
[390576589,1760091045297,-801.85,0.00016712,2]
[390576590,1760091045306,-500.0,0.00016712,2]
[390576592,1760091045316,-799.88,0.00016712,2]
[390576594,1760091045328,-500.0,0.00016712,2]
[390576596,1760091045338,-500.0,0.00016712,2]
[390576598,1760091045347,-500.0,0.00016712,2]
[390576600,1760091045356,-2219.37,0.00016712,2]
[390576602,1760091045365,-500.0,0.00016712,2]
[390576604,1760091045375,-1607.42,0.00016712,2]
[390576606,1760091045383,-999.81,0.00016712,2]
[390576608,1760091045392,-500.0,0.00016712,2]
[390576610,1760091045402,-500.0,0.00016712,2]
[390576612,1760091045411,-500.0,0.00016712,2]
[390576614,1760091045420,-500.0,0.00016712,2]
[390576615,1760091045429,-759.79,0.00016712,2]
[390576617,1760091045438,-549.04,0.00016712,2]
[390576619,1760091045447,-562.58,0.00016712,2]
[390576621,1760091045456,-151.0,0.00016712,2]
[390576623,1760091045465,-808.54,0.00016712,2]
[390576625,1760091045473,-500.0,0.00016712,2]
[390576627,1760091045482,-644.03,0.00016712,2]
[390576629,1760091045491,-500.0,0.00016712,2]
[390576631,1760091045500,-4437.97,0.00016712,2]
[390576632,1760091045509,-500.0,0.00016712,2]
[390576634,1760091045518,-1049.26,0.00016712,2]
[390576636,1760091045527,-500.0,0.00016712,2]
[390576638,1760091045536,-500.0,0.00016712,2]
[390576640,1760091045545,-151.0,0.00016712,2]
[390576642,1760091045554,-151.0,0.00016712,2]
[390576644,1760091045563,-151.0,0.00016712,2]
[390576646,1760091045573,-151.0,0.00016712,2]
[390576648,1760091045582,-185.618188,0.00016712,2]
[390576650,1760091045591,-151.0,0.00016712,2]
[390576651,1760091045600,-151.0,0.00016712,2]
[390576653,1760091045609,-839.44,0.00016712,2]
[390576655,1760091045618,-500.0,0.00016712,2]
[390576657,1760091045627,-500.0,0.00016712,2]
[390576659,1760091045636,-151.0,0.00016712,2]
[390576661,1760091045645,-151.0,0.00016712,2]
[390576663,1760091045654,-500.0,0.00016712,2]
[390576665,1760091045664,-500.0,0.00016712,2]
[390576667,1760091045673,-151.0,0.00016712,2]
[390576669,1760091045681,-151.0,0.00016712,2]
[390576671,1760091045691,-387.365418,0.00016712,2]
[390576673,1760091045700,-387.365418,0.00016712,2]
[390576675,1760091045709,-507.69,0.00016712,2]
[390576677,1760091045718,-500.0,0.00016712,2]
[390576679,1760091045726,-387.365418,0.00016712,2]
[390576681,1760091045735,-387.365418,0.00016712,2]
[390576682,1760091045744,-1797.77,0.00016712,2]
[390576684,1760091045753,-387.365418,0.00016712,2]
[390576686,1760091045762,-387.365418,0.00016712,2]
[390576688,1760091045771,-503.19870999,0.00016712,2]
[390576690,1760091045782,-387.365418,0.00016712,2]
[390576692,1760091045792,-387.365418,0.00016712,2]
[390576694,1760091045801,-851.5,0.00016712,2]
[390576696,1760091045810,-1909.43,0.00016712,2]
[390576698,1760091045820,-531.47,0.00016712,2]
[390576700,1760091045829,-500.0,0.00016712,2]
[390576702,1760091045838,-500.0,0.00016712,2]
[390576704,1760091045848,-151.0,0.00016712,2]
[390576706,1760091045857,-151.0,0.00016712,2]
[390576707,1760091045866,-151.0,0.00016712,2]
[390576709,1760091045876,-168.374148,0.00016712,2]
[390576711,1760091045885,-548.33,0.00016712,2]
[390576713,1760091045894,-500.0,0.00016712,2]
[390576715,1760091045903,-501.11596704,0.00016712,2]
[390576717,1760091045912,-500.0,0.00016712,2]
[390576719,1760091045922,-500.0,0.00016712,2]
[390576721,1760091045935,-500.0,0.00016712,2]
[390576723,1760091045944,-500.0,0.00016712,2]
[390576725,1760091045953,-595.1,0.00016712,2]
[390576727,1760091045962,-500.0,0.00016712,2]
[390576729,1760091045971,-545.94,0.00016712,2]
[390576730,1760091045980,-151.0,0.00016712,2]
[390576732,1760091045989,-245.798995,0.00016712,2]
[390576734,1760091045997,-151.0,0.00016712,2]
[390576736,1760091046007,-500.0,0.00016712,2]
[390576738,1760091046016,-1448.95,0.00016712,2]
[390576740,1760091046025,-151.0,0.00016712,2]
[390576742,1760091046034,-151.0,0.00016712,2]
[390576744,1760091046044,-151.0,0.00016712,2]
[390576745,1760091046053,-151.0,0.00016712,2]
[390576747,1760091046062,-500.0,0.00016712,2]
[390576749,1760091046071,-151.0,0.00016712,2]
[390576751,1760091046080,-1741.21,0.00016712,2]
[390576753,1760091046090,-500.0,0.00016712,2]
[390576755,1760091046098,-500.0,0.00016712,2]
[390576757,1760091046107,-500.0,0.00016712,2]
[390576759,1760091046116,-514.6941495,0.00016712,2]
[390576761,1760091046125,-938.91,0.00016712,2]
[390576763,1760091046135,-500.0,0.00016712,2]
[390576764,1760091046143,-1729.47,0.00016712,2]
[390576766,1760091046152,-212.949088,0.00016712,2]
[390576768,1760091046161,-212.949088,0.00016712,2]
[390576770,1760091046170,-212.949088,0.00016712,2]
[390576772,1760091046179,-212.949088,0.00016712,2]
[390576774,1760091046188,-212.949088,0.00016712,2]
[390576776,1760091046197,-212.949088,0.00016712,2]
[390576778,1760091046206,-500.0,0.00016712,2]
[390576780,1760091046215,-818.03,0.00016712,2]
[390576781,1760091046224,-212.949088,0.00016712,2]
[390576783,1760091046236,-212.949088,0.00016712,2]
[390576785,1760091046249,-500.0,0.00016712,2]
[390576787,1760091046258,-500.0,0.00016712,2]
[390576788,1760091046267,-500.0,0.00016712,2]
[390576789,1760091046277,-227.0,0.00016743,2]
[390576790,1760091046287,-957.55260887,0.00016749,2]
[390576791,1760091046296,-151.0,0.00016762,2]
[390576792,1760091046305,-565.89,0.00016765,2]
[390576793,1760091046316,-300.0,0.00016766,2]
[390576794,1760091046327,-300.0,0.00016766,2]
[390576795,1760091046336,-300.0,0.00016766,2]
[390576796,1760091046345,-300.0,0.00016766,2]
[390576797,1760091046356,-300.0,0.00016766,2]
[390576798,1760091046365,-300.0,0.00016766,2]
[390576799,1760091046375,-300.0,0.00016766,2]
[390576800,1760091046386,-300.0,0.00016766,2]
[390576801,1760091046396,-300.0,0.00016766,2]
[390576802,1760091046406,-300.0,0.00016766,2]
[390576803,1760091046416,-300.0,0.00016766,2]
[390576804,1760091046425,-300.0,0.00016766,2]
[390576805,1760091046434,-300.0,0.00016766,2]
[390576806,1760091046443,-300.0,0.00016766,2]
[390576807,1760091046453,-300.0,0.00016766,2]
[390576808,1760091046462,-600.0,0.00016766,2]
[390576809,1760091046472,-882.0,0.00016767,2]
[390576810,1760091046482,-406.18881881,0.000168,2]
[390576811,1760091046492,-882.0,0.00016822,2]
[390576812,1760091046502,-882.0,0.00016876,2]
[390576813,1760091046511,-2000.0,0.000169,2]
[390576814,1760091046520,-160.0,0.0001692,2]
[390576815,1760091046529,-1041.66666667,0.0001692,2]
[390576817,1760091046539,-234.32063665,0.0001692,2]
[390576819,1760091046548,-160.0,0.0001692,2]
[390576821,1760091046557,-160.0,0.0001692,2]
[390576822,1760091046566,-402.20179238,0.0001692,2]
[390576823,1760091046579,-417.15472785,0.0001692,2]
[390576824,1760091046589,-882.0,0.00016931,2]
[390576825,1760091046598,-957.55260887,0.00016955,2]
[390576826,1760091046608,-500.0,0.00016973,2]
[390576827,1760091046617,-217.82016266,0.00016974,2]
[390576828,1760091046627,-565.89,0.00016985,2]
[390576829,1760091046636,-565.89,0.00016985,2]
[390576830,1760091046646,-565.89,0.00016985,2]
[390576832,1760091046655,-565.89,0.00016985,2]
[390576833,1760091046664,-566.0912304,0.00016985,2]
[390576835,1760091046673,-270.09877645,0.00016985,2]
[390576837,1760091046681,-591.5430505,0.00016985,2]
[390576839,1760091046690,-882.0,0.00016986,2]
[390576841,1760091046699,-500.0,0.00016986,2]
[390576843,1760091046708,-500.0,0.00016986,2]
[390576844,1760091046717,-500.0,0.00016986,2]
[390576846,1760091046726,-700.31,0.00016986,2]
[390576848,1760091046735,-500.0,0.00016986,2]
[390576850,1760091046744,-500.0,0.00016986,2]
[390576852,1760091046753,-500.0,0.00016986,2]
[390576854,1760091046762,-500.0,0.00016986,2]
[390576856,1760091046772,-500.0,0.00016986,2]
[390576858,1760091046781,-540.17,0.00016986,2]
[390576860,1760091046790,-500.0,0.00016986,2]
[390576862,1760091046799,-500.0,0.00016986,2]
[390576864,1760091046808,-152.507168,0.00016986,2]
[390576866,1760091046817,-504.6195507,0.00016986,2]
[390576868,1760091046826,-803.31,0.00016986,2]
[390576870,1760091046835,-300.0,0.00016986,2]
[390576872,1760091046845,-327.42377819,0.00016986,2]
[390576874,1760091046855,-500.0,0.00016986,2]
[390576876,1760091046864,-500.0,0.00016986,2]
[390576878,1760091046873,-500.0,0.00016986,2]
[390576880,1760091046882,-500.0,0.00016986,2]
[390576882,1760091046892,-500.0,0.00016986,2]
[390576884,1760091046901,-500.0,0.00016986,2]
[390576886,1760091046909,-500.0,0.00016986,2]
[390576888,1760091046918,-500.0,0.00016986,2]
[390576890,1760091046927,-500.0,0.00016986,2]
[390576892,1760091046936,-500.0,0.00016986,2]
[390576894,1760091046945,-500.0,0.00016986,2]
[390576896,1760091046954,-500.0,0.00016986,2]
[390576898,1760091046963,-548.39556787,0.00016986,2]
[390576900,1760091046972,-500.0,0.00016986,2]
[390576902,1760091046981,-500.0,0.00016986,2]
[390576904,1760091046990,-500.0,0.00016986,2]
[390576906,1760091047000,-942.37,0.00016986,2]
[390576908,1760091047009,-500.0,0.00016986,2]
[390576910,1760091047017,-500.0,0.00016986,2]
[390576912,1760091047026,-500.0,0.00016986,2]
[390576913,1760091047036,-1003.68,0.00016986,2]
[390576915,1760091047045,-500.91900089,0.00016986,2]
[390576917,1760091047054,-305.74487698,0.00016986,2]
[390576919,1760091047063,-500.0,0.00016986,2]
[390576921,1760091047073,-151.0,0.00016986,2]
[390576923,1760091047082,-151.0,0.00016986,2]
[390576926,1760091047093,-500.0,0.00016986,2]
[390576927,1760091047102,-500.0,0.00016986,2]
[390576929,1760091047111,-500.0,0.00016986,2]
[390576931,1760091047121,-504.11079251,0.00016986,2]
[390576933,1760091047130,-579.05,0.00016986,2]
[390576935,1760091047139,-500.0,0.00016986,2]
[390576937,1760091047148,-500.0,0.00016986,2]
[390576939,1760091047157,-500.0,0.00016986,2]
[390576941,1760091047166,-538.49870538,0.00016986,2]
[390576943,1760091047175,-188.56000202,0.00016986,2]
[390576945,1760091047184,-151.0,0.00016986,2]
[390576947,1760091047193,-500.0,0.00016986,2]
[390576949,1760091047201,-151.0,0.00016986,2]
[390576951,1760091047210,-239.06881,0.00016986,2]